{"text_format":"1","workbook":"xlsx","n_sheets":4,"sheets":["限度額設定型貿易保険（船積前）損失発生通知書","別紙","記入要領","事故発生日、事故確定日判別表"],"not_rendered":{"charts":0,"images":1,"macros":0,"external_links":6,"defined_names":12,"comments":0,"pivot_tables":0},"unopened":[],"bounds":{"document_bytes":16777216,"sheet_cells":100000,"rows_first":2000,"rows_last":500,"rows_between":2000,"halvings":0,"cell_chars":16384,"cell_head_chars":4096},"cells_cut":0,"cells_raw":0,"read":"whole","date_system":"1900"}

{"sheet":"限度額設定型貿易保険（船積前）損失発生通知書","index":0,"n_rows":50,"n_cols":30,"rows_kept":50,"cut":false,"hidden":false,"merged":[[46,0,47,0],[46,1,46,4],[46,5,46,15],[46,16,46,19],[46,20,46,29],[47,1,47,4],[47,5,47,15],[47,16,47,19],[47,20,47,29],[34,1,34,5],[40,0,40,29],[31,17,31,21],[36,0,36,29],[18,24,18,29],[18,6,18,17],[28,0,28,29],[29,1,29,5],[29,6,29,29],[22,1,22,9],[21,1,21,5],[21,6,21,9],[18,1,18,5],[31,1,31,9],[20,1,20,5],[32,1,32,5],[44,0,44,29],[38,0,38,29],[37,0,37,29],[39,0,39,29],[43,0,43,29],[42,0,42,29],[41,0,41,29],[49,20,49,22],[49,24,49,25],[49,27,49,28],[18,19,18,23],[9,19,9,29],[10,17,10,29],[11,17,11,22],[17,19,17,23],[17,24,17,29],[16,0,16,29],[34,6,34,29],[17,1,17,5],[21,10,21,29],[23,1,23,9],[23,10,23,29],[24,1,24,9],[30,1,30,5],[33,1,33,9],[32,6,32,29],[30,6,30,29],[31,22,31,29],[8,21,8,28],[7,21,7,28],[14,1,14,5],[2,0,2,29],[14,6,14,29],[11,23,11,29],[4,20,4,22],[4,24,4,25],[4,27,4,28],[9,17,9,18],[7,29,8,29],[24,10,24,29],[25,1,25,9],[25,10,25,29],[26,1,26,9],[26,10,26,29],[22,10,22,29],[19,1,19,5],[19,19,19,23],[20,6,20,29],[17,6,17,17],[19,6,19,17],[19,24,19,29]]}
["別紙様式第８－１"]
[]
["限度額設定型貿易保険（船積前）損失発生通知書"]
[]
[null,null,null,null,null,null,null,null,null,null,null,null,null,null,null,null,null,"提出日",null,null,null,null,null,"年",null,null,"月",null,null,"日"]
["株式会社日本貿易保険　御中"]
[null," "]
[null,null,null,null,null,null,null,null,null,null,null,null,null,null,null,null,null,"被保険者名",null,null,null,null,null,null,null,null,null,null,null,"印"]
[null,null,null,null,null,null,null,null,null,null,null,null,null,null,null,null,null,"代表者氏名"]
[null,null,null,null,null,null,null,null,null,null,null," ",null,null,null,null,null,"住所"]
[]
[null,null,null,null,null,null,null,null,null,null,null,null,null,null,null,null,null,"保険利用者コード"]
[]
[]
[1,"保険証券番号"]
[]
["輸出契約等の情報及び損失発生額　（「別紙」を作成する場合は記入不要）"]
[{"$f":"A15+1","v":2},"輸出契約等番号",null,null,null,null,null,null,null,null,null,null,null,null,null,null,null,null,{"$f":"A18+1","v":3},"輸出契約等締結日"]
[{"$f":"S18+1","v":4},"事故発生日",null,null,null,null,null,null,null,null,null,null,null,null,null,null,null,null,{"$f":"A19+1","v":5},"船積予定日"]
[{"$f":"S19+1","v":6},"事故確定日",null,null,null,null,null,null,null,null,null,null,null,null,null,null,null,null,{"$f":"A20+1","v":7},"仕向国"]
[{"$f":"S20+1","v":8},"輸出契約等の相手方"]
[{"$f":"A21+1","v":9},"契約通貨",null,null,null,null,null,null,null,null,"金額（FOB価額、建値）"]
[10,"輸出契約等に基づく代金等の額"]
[11,"船積予定額（既船積＋未船積）"]
[12,"既船積"]
[13,"未船積"]
[14,"損失発生額"]
[]
["案件概要等"]
[{"$f":"A27+1","v":15},"案件概要"]
[{"$f":"A30+1","v":16},"品名（貨物名）"]
[{"$f":"A31+1","v":17},"保証金等、担保の受領の有無",null,null,null,null,null,null,null,null,null,null,null,null,null,null,{"$f":"A32+1","v":18},"保証金等の金額"]
[{"$f":"Q32+1","v":19},"保証金等の内容"]
[{"$f":"A33+1","v":20},"クレームの有無"]
[{"$f":"A34+1","v":21},"クレームの内容"]
[]
["損失等発生に至った経緯等"]
["(事故発生に至った経緯)"]
[]
["(本通知提出までに実施されたこと)"]
[]
["(今後の見込みや対応予定)"]
[]
["（本通知書の提出が損失等が発生してから45日を超えた場合は、通知書の提出が遅滞した理由を記入してください。）"]
[]
[]
["連絡先","担当部署名",null,null,null,null,null,null,null,null,null,null,null,null,null,null,"担当者名"]
[null,"E-mail アドレス",null,null,null,null,null,null,null,null,null,null,null,null,null,null,"電話番号"]
[]
[null,null,null,null,null,null,null,null,null,null,null,null,null,"NEXI記入欄",null,null,null,"受理日：",null,null,null,null,null,"年","　",null,"月",null,null,"日"]

{"sheet":"別紙","index":1,"n_rows":60,"n_cols":13,"rows_kept":60,"cut":false,"hidden":false,"merged":[[1,1,1,12],[7,2,7,3],[8,2,8,3],[55,1,55,2],[55,3,55,4]]}
[null,"別紙"]
[]
[]
[]
[]
[]
[null,null,null,null,null,null,null,null,null,"　被保険者シッパーコード"]
[null,null,"証　券　番　号"]
[null,null,"保険契約締結日"]
[]
[]
[]
[]
[null,"輸出契約等締結通知"]
[null,"事故\n通番","輸出契約等番号","輸出契約等の相手方\nのバイヤーコード","支払国の国コード","輸出契約等締結日","船積（予定）日","決済日","通貨コード","輸出契約等に基づく\n代金等の額　　　①","輸出契約等締結日\nTTBレート　　②","保険価額\n(①×②)③",{"$f":"IF($E$10=\"\",\"保険金額\n（③×90%)\",IF($E$10>=DATE(2007,4,1),\"保険金額\n（③×90%）\",\"保険金額\n（③×95%）\"))","v":"保険金額\n（③×90%)"}]
[null,1,null,null,null,null,null,null,null,null,null,{"$f":"ROUNDDOWN(J16*K16,0)","v":0},{"$f":"IF($E$10=\"\",ROUNDDOWN(L16*0.9,0),IF($E$10>=DATE(2007,4,1),ROUNDDOWN(L16*0.9,0),ROUNDDOWN(L16*0.95,0)))","v":0}]
[null,{"$f":"B16+1","v":2},null,null,null,null,null,null,null,null,null,{"$f":"ROUNDDOWN(J17*K17,0)","v":0},{"$f":"IF($E$10=\"\",ROUNDDOWN(L17*0.9,0),IF($E$10>=DATE(2007,4,1),ROUNDDOWN(L17*0.9,0),ROUNDDOWN(L17*0.95,0)))","v":0}]
[null,3,null,null,null,null,null,null,null,null,null,0,0]
[null,4,null,null,null,null,null,null,null,null,null,{"$f":"ROUNDDOWN(J19*K19,0)","v":0},0]
[null,5,null,null,null,null,null,null,null,null,null,0,0]
[null,6,null,null,null,null,null,null,null,null,null,0,0]
[null,7,null,null,null,null,null,null,null,null,null,0,0]
[null,8,null,null,null,null,null,null,null,null,null,0,0]
[null,9,null,null,null,null,null,null,null,null,null,0,0]
[null,10,null,null,null,null,null,null,null,null,null,0,0]
[null,11,null,null,null,null,null,null,null,null,null,0,0]
[null,12,null,null,null,null,null,null,null,null,null,0,0]
[null,13,null,null,null,null,null,null,null,null,null,0,0]
[null,14,null,null,null,null,null,null,null,null,null,0,0]
[null,15,null,null,null,null,null,null,null,null,null,0,0]
[null,16,null,null,null,null,null,null,null,null,null,0,0]
[null,17,null,null,null,null,null,null,null,null,null,0,0]
[null,18,null,null,null,null,null,null,null,null,null,0,0]
[null,19,null,null,null,null,null,null,null,null,null,0,0]
[null,20,null,null,null,null,null,null,null,null,null,0,0]
[null,null,null,null,null,null,null,null,null,null,"計",{"$f":"SUM(L16:L35)","v":0},{"$f":"SUM(M16:M35)","v":0}]
[]
[null,"３．輸出契約等内容変更通知"]
[null,"整理\n番号","通知済輸出契約等番号","変更輸出契約等番号","輸出契約等の相手方\nのバイヤーコード","支払国の国コード","輸出契約等締結日","契約変更日","通貨コード","輸出契約等の変更額\n①","輸出契約等変更日\nTTBレート　　②","保険価額\n(①×②)③",{"$f":"IF($E$9=\"\",\"保険金額\n（③×90%)\",IF($E$9>=DATE(2007,4,1),\"保険金額\n（③×90%）\",\"保険金額\n（③×95%）\"))","v":"保険金額\n（③×90%)"}]
[null,1,null,null,null,null,null,null,null,null,null,{"$f":"ROUNDDOWN(J40*K40,0)","v":0},{"$f":"IF($E$9=\"\",ROUNDDOWN(L40*0.9,0),IF($E$9>=DATE(2007,4,1),ROUNDDOWN(L40*0.9,0),ROUNDDOWN(L40*0.95,0)))","v":0}]
[null,{"$f":"B40+1","v":2},null,null,null,null,null,null,null,null,null,{"$f":"ROUNDDOWN(J41*K41,0)","v":0},{"$f":"IF($E$9=\"\",ROUNDDOWN(L41*0.9,0),IF($E$9>=DATE(2007,4,1),ROUNDDOWN(L41*0.9,0),ROUNDDOWN(L41*0.95,0)))","v":0}]
[null,{"$f":"B41+1","v":3},null,null,null,null,null,null,null,null,null,{"$f":"ROUNDDOWN(J42*K42,0)","v":0},{"$f":"IF($E$9=\"\",ROUNDDOWN(L42*0.9,0),IF($E$9>=DATE(2007,4,1),ROUNDDOWN(L42*0.9,0),ROUNDDOWN(L42*0.95,0)))","v":0}]
[null,{"$f":"B42+1","v":4},null,null,null,null,null,null,null,null,null,{"$f":"ROUNDDOWN(J43*K43,0)","v":0},{"$f":"IF($E$9=\"\",ROUNDDOWN(L43*0.9,0),IF($E$9>=DATE(2007,4,1),ROUNDDOWN(L43*0.9,0),ROUNDDOWN(L43*0.95,0)))","v":0}]
[null,{"$f":"B43+1","v":5},null,null,null,null,null,null,null,null,null,{"$f":"ROUNDDOWN(J44*K44,0)","v":0},{"$f":"IF($E$9=\"\",ROUNDDOWN(L44*0.9,0),IF($E$9>=DATE(2007,4,1),ROUNDDOWN(L44*0.9,0),ROUNDDOWN(L44*0.95,0)))","v":0}]
[null,null,null,null,null,null,null,null,null,null,"計",{"$f":"SUM(L40:L44)","v":0},{"$f":"SUM(M40:M44)","v":0}]
[null,"４．通知額（保険金額）累計"]
[null,null,"１月通知額",null,"７月通知額",null,null,null,null,null,"当月合計",0,0]
[null,null,"２月通知額",null,"８月通知額"]
[null,null,"３月通知額",null,"９月通知額"]
[null,null,"４月通知額",null,"１０月通知額",null,null,null,null,"６．連絡先等"]
[null,null,"５月通知額",null,"１１月通知額",null,null,null,null,"氏  名：",null,"部署名："]
[null,null,"６月通知額",null,"１２月通知額",null,null,null,null,"ＴＥＬ：",null,"ＦＡＸ："]
[null,null,null,null,"通知額累計",{"$f":"SUM(F47:F52)+SUM(D47:D52)","v":0},"……Ｂ",null,null,"E-mail："]
[null,null,null,null,null,null,null,null,null,"その他通信欄"]
[null,"５．引受保険金額上限額残"]
[null,"Ａ－Ｂ＝",null,{"$f":"E12-F53","v":0}]
[]
[null,"（注）　１．本通知書「別紙様式第４－１」に通知すべき輸出契約等の内容が記載しきれない場合は、「別紙様式第４－２」をご使用下さい。"]
[null,"　　　  ２．本通知書の他に「別紙様式第４－２」もご使用の場合は、本通知書との合計額を ４．通知額（保険金額）累計 にご記入下さい。"]
[null,"  　　  ３．輸出契約等ごとの保険金支払いの上限は、当該保険金額となるため、額、レートは正確にご記入下さい。"]

{"sheet":"記入要領","index":2,"n_rows":35,"n_cols":3,"rows_kept":35,"cut":false,"hidden":false,"merged":[[36,1,36,12],[36,17,36,50],[38,1,38,12],[24,2,24,12],[26,2,26,12],[28,2,28,12],[30,2,30,12],[32,2,32,12],[22,2,22,12],[10,2,10,12],[0,0,0,12],[2,2,2,12],[4,2,4,12],[6,2,6,12],[8,2,8,12],[12,2,12,12],[14,2,14,12],[16,2,16,12],[18,2,18,12],[20,2,20,12]]}
["記入要領"]
[]
["①","提出日","日本貿易保険へ提出する日を西暦で記入してください。"]
[]
[{"$f":"CHAR(CODE(A3)+1)","v":"②"},"被保険者名\n代表者氏名\n住所","必要に応じて行を加減し記入してください。\n「被保険者名」は本通知を提出する法人名を、「代表者氏名」は「被保険者」を代表する方（代表取締役社長等）の氏名を記入し、代表者印（丸印）を押印してください。\n貿易保険に係る手続きの代理人登録をしている場合は、該当者の役職及び氏名を記載し、登録済みの代理人印を押印してください。"]
[]
[{"$f":"CHAR(CODE('[5]記入要領（別紙様式第8-1 ）'!A5)+1)","v":"③"},"１．保険証券番号","保険証券の確認し、記入してください。"]
[]
[{"$f":"CHAR(CODE(A7)+1)","v":"④"},"２．輸出契約等番号\n３．輸出契約等締結日","対象となる輸出等契約書をご確認の上、ご記入ください。\n輸出契約等締結日は、限度額設定型貿易保険運用規程第９条（輸出契約等の締結日）を確認し、記入してください。"]
[]
[{"$f":"CHAR(CODE('[6]記入要領(別紙様式第8-2 )'!A9)+1)","v":"⑤"},"４．事故発生日\n６．事故確定日","別シートの「事故発生日、事故確定日判別表」から、該当する事故発生日・事故確定日を西暦で記入してください。 "]
[]
[{"$f":"CHAR(CODE(A11)+1)","v":"⑥"},"５．船積予定日\n７．仕向国","対象となる輸出等契約書を確認し、記入してください。"]
[]
[{"$f":"CHAR(CODE(A13)+1)","v":"⑦"},"８．輸出契約等の相手方","対象となる輸出等契約書及び保険証券を確認し、記入してください。"]
[]
[{"$f":"CHAR(CODE(A15)+1)","v":"⑧"},"９．契約通貨","保険証券に記載された通貨を記入してください。"]
[]
[{"$f":"CHAR(CODE(A17)+1)","v":"⑨"},"１０．輸出契約等に基づく\n代金等の額","対象となる輸出等契約書を確認し、代金等の額をFOB価額ベース及び契約建値で記入してください。"]
[]
[{"$f":"CHAR(CODE(A19)+1)","v":"⑩"},"１１．船積予定額","「１２．既船積」と「１３．未船積」の金額の合計を記入してください。\n\n金額の記入において、通貨が円建ての場合には、小数点以下は記入しないでください。\n円以外の通貨建ての場合には、小数点以下２桁（３桁以下は切り捨て）まで記入してください。（以下同じ。）"]
[]
[{"$f":"CHAR(CODE(A21)+1)","v":"⑪"},"１２．既船積\n１３．未船積","該当する金額は、FOB価額ベース及び契約建値で記入してください。"]
[]
[{"$f":"CHAR(CODE(A23)+1)","v":"⑫"},"１４．損失発生額","「１３．未船積」のうち当該事故に該当する金額をFOB価額ベース及び契約建値で記入してください。"]
[]
[{"$f":"CHAR(CODE(A25)+1)","v":"⑬"},"１５．案件概要","取引開始の経緯や商流等できるだけ詳細に記入してください。"]
[]
[{"$f":"CHAR(CODE(A27)+1)","v":"⑭"},"１６．品名（貨物名）","保険申込書及び輸出等契約書を確認し記入してください。"]
[]
[{"$f":"CHAR(CODE(A29)+1)","v":"⑮"},"１７．保証金等、\n担保の受領の有無","輸出契約等の相手方や第三者から保証金、預かり金、担保等について、保証金等を預かっている場合には「有」を、該当が無い場合には「無」を選択してください。\nまた、「有」の場合は「１８．保証金等の金額」及び「１９．保証金等の内容」を記入してください。"]
[]
[{"$f":"CHAR(CODE(A31)+1)","v":"⑯"},"２０．クレームの有無","輸出契約等の相手方からクレームがある場合には「有」を、無い場合には「無」を選択してください。\nまた、「有」の場合は「２１．クレームの内容」を記入してください。"]
[]
[{"$f":"CHAR(CODE(A33)+1)","v":"⑰"},"損失等発生に至った経緯等","できるだけ詳細に記入してください。"]

{"sheet":"事故発生日、事故確定日判別表","index":3,"n_rows":32,"n_cols":6,"rows_kept":32,"cut":false,"hidden":false,"merged":[[6,0,7,0],[6,1,7,1],[6,3,17,3],[7,4,7,5],[8,0,9,0],[8,1,9,1],[9,4,9,5],[10,1,10,2],[10,4,17,4],[10,5,14,5],[11,1,11,2],[12,1,12,2],[13,1,13,2],[14,1,14,2],[2,0,2,4],[3,0,4,0],[3,1,4,2],[3,4,3,5],[5,0,5,1],[24,1,24,2],[24,3,24,5],[15,0,16,0],[15,1,15,2],[16,1,16,2],[16,5,17,5],[17,1,17,2],[18,0,19,0],[18,3,18,5],[19,3,19,5],[20,0,22,0],[20,1,22,2],[20,3,22,5],[23,1,23,2],[23,3,23,5],[29,0,29,1],[30,0,31,2],[30,3,30,5],[31,3,31,5],[25,0,25,1],[26,0,26,2],[26,3,26,5],[27,0,28,0],[27,1,28,2],[27,3,27,5],[28,3,28,5]]}
[]
["　（事故発生日、事故確定日判別表） "]
[]
["号","てん補事由",null,"輸出契約等で定める\n船積期日前","輸出契約等で定める船積期日後"]
[null,null,null,"当該事由によって輸出契約等が破棄された場合","当該事由によって輸出契約等が破棄された場合","当該事由が生じたため船積みが著しく困難になったと認められる場合"]
["（船積前）"]
["一","外国における為替取引の","制限","　発生日、確定日\n  ＝破棄通知日の発信日"," 発生日＝船積期日\n 確定日＝破棄通知の発信日"," 発生日＝船積期日\n 確定日＝船積期日から2月を経過した日"]
[null,null,"禁止",null," 発生日、確定日＝当該禁止措置が実施された日"]
["二","仕向国における輸入の","制限",null," 発生日＝船積期日\n 確定日＝破棄通知の発信日"," 発生日＝船積期日\n 確定日＝船積期日から2月を経過した日"]
[null,null,"禁止",null," 発生日、確定日＝当該禁止措置が実施された日"]
["三","政府間合意に基づく債務繰延べ協定、又は支払国に起因する外貨送金遅延",null,null," 発生日＝船積期日\n 確定日＝破棄通知の発信日","　発生日＝船積期日\n　確定日＝船積期日からNEXIがその都度\n　　　　　　　定める期間を経過した日"]
["四","現地通貨決済をもって債務弁済を有効とする支払国の法令の制定／外国の政府・州政府等による債務の全部・一部の決済を免除する措置又は決定"]
["五","外国の政府・州政府等による収用"]
["六","外国の政府・州政府等による債務の全部・一部の決済を妨げる違法又は差別的な措置又は決定"]
["七","国際連合、その他の国際機関又は仕向国以外の国による経済制裁　　"]
["八","本邦外において生じた事由\n（戦争、革命等、輸送の途絶）",null,null,null,"  発生日＝船積期日\n  確定日＝船積期日から2月を経過した日"]
[null,"本邦外において生じた事由\n（天災、原子力事故）",null,null,null,"　発生日＝船積期日\n  確定日＝船積期日からNEXIがその都度\n　　　　　　　定める期間を経過した日"]
["九","前号以外の本邦外で生じた事由であって、輸出契約等の当事者の責めに帰することができないもの"]
["十","外為法等による輸出等の","制限","   発生日、確定日＝当該制限により輸出または販売できないことの確認を経済産業省から受けた日"]
[null,"仲介貿易貨物の販売等の","禁止","   発生日、確定日＝当該禁止措置が実施された日"]
["十一","外国の政府等からの一方的契約破棄等",null,"   発生日、確定日＝破棄通知または解除通知の発信日"]
[]
[]
["十二","相手方の破産手続きの開始決定",null,"   発生日、確定日＝破産手続き開始の決定の宣告を受けた日"]
["十三","相手方の破産手続きの開始決定に準ずる事由",null,"   発生日、確定日＝支払い不能状態となった日"]
["（船積後／役務提後）"]
["  上記一号～九号及び十二号",null,null,"   発生日、確定日＝輸出契約等で定める決済期限"]
["十四","相手方の3月以上の債務履行遅滞",null,"   発生日＝輸出契約等で定める決済期限"]
[null,null,null,"   確定日＝当該決済期限から3月を経過した日"]
["（増加費用）"]
["上記一号～十号",null,null,"   発生日＝該当する事由が発生した日"]
[null,null,null,"   確定日＝運賃又は保険料の増加額を新たに負担することとなった日"]